[Event "Amateur Tournament (ATO)"]
[Site "Biel, Switzerland"]
[Date "2026.07.15"]
[Round "2.1"]
[White "Huang, Hsuan-Chen"]
[Black "Jud, Marc"]
[Result "1/2-1/2"]
[TimeControl "90+30+30sec/move"]
[WhiteTitle "-"]
[BlackTitle "-"]
[WhiteFideId "16303121"]
[BlackFideId "1309099"]
[WhiteElo "1805"]
[BlackElo "1991"]

1. Nf3 {[%emt 00:55:16]} Nf6 {[%emt 00:00:22]} 2. d4 {[%emt 00:00:09]} d5
{[%emt 00:00:12]} 3. e3 {[%emt 00:00:08]} e6 {[%emt 00:00:15]} 4. Bd3 {[%emt
00:00:07]} c5 {[%emt 00:00:08]} 5. c3 {[%emt 00:00:06]} Be7 {[%emt 00:00:45]} 6.
O-O {[%emt 00:00:09]} O-O {[%emt 00:00:10]} 7. Nbd2 {[%emt 00:00:05]} b6 {[%emt
00:00:39]} 8. e4 {[%emt 00:09:31]} dxe4 {[%emt 00:01:13]} 9. Nxe4 {[%clk
01:23:19]} {[%emt 00:00:07]} Nbd7 {[%clk 01:29:39]} 10. Qe2 {[%clk 01:19:09]}
{[%emt 00:07:32]} Bb7 {[%clk 01:25:56]} {[%emt 00:04:13]} 11. dxc5 {[%clk
01:13:59]} {[%emt 00:05:40]} Nxe4 {[%clk 01:22:08]} {[%emt 00:04:18]} 12. Bxe4
{[%clk 01:02:01]} {[%emt 00:12:29]} Bxe4 {[%clk 01:19:28]} {[%emt 00:03:09]} 13.
Qxe4 {[%clk 01:02:24]} {[%emt 00:00:07]} Nxc5 {[%clk 01:19:33]} {[%emt
00:00:25]} 14. Qg4 {[%clk 01:02:19]} {[%emt 00:00:34]} Qc7 {[%clk 01:12:28]}
{[%emt 00:07:36]} 15. Rd1 {[%clk 00:54:11]} {[%emt 00:08:38]} Rad8 {[%clk
01:09:31]} {[%emt 00:03:26]} 16. Bf4 {[%clk 00:50:57]} {[%emt 00:03:45]} Bd6
{[%clk 01:08:47]} {[%emt 00:01:14]} 17. Rxd6 {[%clk 00:49:24]} {[%emt
00:02:04]} Rxd6 {[%clk 01:08:22]} {[%emt 00:00:54]} 18. Nd4 {[%clk 00:47:35]}
{[%emt 00:02:19]} a6 {[%clk 01:06:22]} {[%emt 00:02:30]} 19. Be5 {[%clk
00:44:03]} {[%emt 00:04:01]} f6 {[%clk 01:04:35]} {[%emt 00:02:18]} 20. Bxd6
{[%clk 00:44:28]} {[%emt 00:00:05]} Qxd6 {[%clk 01:04:55]} {[%emt 00:00:10]} 21.
b4 {[%clk 00:40:52]} {[%emt 00:04:05]} f5 {[%clk 00:58:11]} {[%emt 00:07:15]}
22. Qe2 {[%clk 00:32:46]} {[%emt 00:08:35]} Ne4 {[%clk 00:57:47]} {[%emt
00:00:54]} 23. Qxa6 {[%clk 00:33:03]} {[%emt 00:00:14]} Nxc3 {[%clk 00:56:59]}
{[%emt 00:01:19]} 24. Nf3 {[%clk 00:32:24]} {[%emt 00:01:09]} Qxb4 {[%clk
00:56:21]} {[%emt 00:01:07]} 25. Ne5 {[%clk 00:30:12]} {[%emt 00:02:42]} Ne4
{[%clk 00:54:29]} {[%emt 00:02:22]} 26. Rf1 {[%clk 00:26:23]} {[%emt 00:04:20]}
Qd4 {[%clk 00:39:36]} {[%emt 00:15:20]} 27. Nc6 {[%clk 00:24:47]} {[%emt
00:02:08]} Qc5 {[%clk 00:36:29]} {[%emt 00:03:35]} 28. Qb7 {[%clk 00:24:13]}
{[%emt 00:01:06]} Re8 {[%clk 00:33:56]} {[%emt 00:03:03]} 29. a4 {[%clk
00:24:27]} {[%emt 00:00:17]} h6 {[%clk 00:29:40]} {[%emt 00:04:45]} 30. Qd7
{[%clk 00:21:42]} {[%emt 00:03:15]} Nf6 {[%clk 00:27:56]} {[%emt 00:02:15]} 31.
Qb7 {[%clk 00:22:01]} {[%emt 00:00:11]} Ne4 {[%clk 00:24:11]} {[%emt 00:04:14]}
32. Qd7 {[%clk 00:21:52]} {[%emt 00:00:39]} Kf8 {[%clk 00:23:28]} {[%emt
00:01:14]} 33. Nd4 {[%clk 00:19:37]} {[%emt 00:02:45]} Qd5 {[%clk 00:19:59]}
{[%emt 00:03:58]} 34. Qxd5 {[%clk 00:19:08]} {[%emt 00:00:59]} exd5 {[%clk
00:20:24]} {[%emt 00:00:04]} 35. Nxf5 {[%clk 00:19:14]} {[%emt 00:00:25]} Nc3
{[%clk 00:19:41]} {[%emt 00:01:13]} 36. Ra1 {[%clk 00:16:16]} {[%emt 00:03:29]}
g6 {[%clk 00:18:16]} {[%emt 00:01:54]} 37. Nd4 {[%clk 00:14:29]} {[%emt
00:02:17]} Re4 {[%clk 00:18:16]} {[%emt 00:00:29]} 38. Nc2 {[%clk 00:14:47]}
{[%emt 00:00:13]} Rxa4 {[%clk 00:13:22]} {[%emt 00:05:24]} 39. Rxa4 {[%clk
00:14:16]} {[%emt 00:01:02]} Nxa4 {[%clk 00:13:49]} {[%emt 00:00:03]} 40. Kf1
{[%clk 00:14:14]} {[%emt 00:00:32]} Ke7 {[%clk 00:14:05]} {[%emt 00:00:13]} 41.
Ke2 {[%clk 00:14:25]} {[%emt 00:00:19]} Kd6 {[%clk 00:14:08]} {[%emt 00:00:27]}
42. Kd3 {[%clk 00:14:41]} {[%emt 00:00:14]} Kc5 {[%clk 00:13:56]} {[%emt
00:00:42]} 43. Na1 {[%clk 00:14:16]} {[%emt 00:00:56]} Nb2+ {[%clk 00:14:00]}
{[%emt 00:00:25]} 44. Kc2 {[%clk 00:14:29]} {[%emt 00:00:17]} Nc4 {[%clk
00:13:18]} {[%emt 00:01:12]} 45. Nb3+ {[%clk 00:14:02]} {[%emt 00:00:58]} Kb4
{[%clk 00:12:47]} {[%emt 00:01:00]} 46. Nd4 {[%clk 00:14:26]} {[%emt 00:00:06]}
b5 {[%clk 00:12:26]} {[%emt 00:00:51]} 47. Ne6 {[%clk 00:13:24]} {[%emt
00:01:32]} Ne5 {[%clk 00:11:14]} {[%emt 00:01:42]} 48. h3 {[%clk 00:13:32]}
{[%emt 00:00:23]} Kc4 {[%clk 00:10:55]} {[%emt 00:00:48]} 49. f4 {[%clk
00:13:38]} {[%emt 00:00:24]} Nc6 {[%clk 00:10:58]} {[%emt 00:00:27]} 50. g4
{[%clk 00:13:36]} {[%emt 00:00:33]} Ne7 {[%clk 00:08:00]} {[%emt 00:03:27]} 51.
h4 {[%clk 00:12:52]} {[%emt 00:01:14]} d4 {[%clk 00:07:34]} {[%emt 00:00:56]}
52. Kd2 {[%clk 00:09:18]} {[%emt 00:07:15]} d3 53. g5 hxg5 {[%clk 00:06:17]} 54.
fxg5 {[%clk 00:09:18]} {[%emt 00:00:07]} Nd5 {[%clk 00:05:06]} {[%emt
00:01:41]} 55. h5 {[%clk 00:08:58]} {[%emt 00:00:50]} gxh5 {[%clk 00:05:18]}
{[%emt 00:00:17]} 56. g6 {[%clk 00:09:24]} {[%emt 00:00:04]} h4 {[%clk
00:03:30]} {[%emt 00:02:19]} 57. Nf4 {[%clk 00:09:10]} {[%emt 00:00:43]} Nf6
{[%clk 00:03:37]} {[%emt 00:00:22]} 58. Nxd3 {[%clk 00:09:18]} {[%emt
00:00:23]} h3 {[%clk 00:03:49]} {[%emt 00:00:18]} 59. Ne5+ {[%clk 00:06:34]}
{[%emt 00:03:14]} Kd5 {[%clk 00:02:52]} {[%emt 00:01:27]} 60. Nf3 {[%clk
00:06:58]} {[%emt 00:00:07]} b4 {[%clk 00:02:33]} {[%emt 00:00:48]} 61. Kd3
{[%clk 00:06:27]} {[%emt 00:01:01]} Nh5 {[%clk 00:02:37]} {[%emt 00:00:26]} 62.
Kc2 {[%clk 00:06:08]} {[%emt 00:00:49]} Kc4 {[%clk 00:02:12]} {[%emt 00:00:55]}
63. Kb2 {[%clk 00:06:12]} {[%emt 00:00:27]} Kd3 {[%clk 00:01:34]} {[%emt
00:01:05]} 64. Kb3 {[%clk 00:06:40]} {[%emt 00:00:05]} Ke3 {[%clk 00:01:48]}
{[%emt 00:00:16]} 65. Nh2 {[%clk 00:07:07]} {[%emt 00:00:02]} Kf4 {[%clk
00:02:01]} {[%emt 00:00:16]} 66. Kxb4 {[%clk 00:07:26]} {[%emt 00:00:12]} Kg3
{[%clk 00:01:43]} {[%emt 00:00:48]} 67. Nf1+ {[%clk 00:07:52]} {[%emt
00:00:04]} Kf2 {[%clk 00:01:34]} {[%emt 00:00:38]} 68. Nh2 {[%clk 00:08:20]}
{[%emt 00:00:04]} Kg2 {[%clk 00:01:21]} {[%emt 00:00:42]} 69. Ng4 {[%clk
00:08:46]} {[%emt 00:00:04]} Kg3 {[%clk 00:01:26]} {[%emt 00:00:25]} 70. Ne3
{[%clk 00:09:14]} {[%emt 00:00:02]} Ng7 {[%clk 00:29:38]} {[%emt 00:02:18]} 71.
Kc3 {[%clk 00:38:31]} {[%emt 00:01:13]} Kf3 {[%clk 00:29:35]} {[%emt 00:00:32]}
72. Nf1 {[%clk 00:38:56]} {[%emt 00:00:06]} Nf5 {[%clk 00:29:39]} {[%emt
00:00:25]} 73. Kd3 {[%clk 00:37:49]} {[%emt 00:01:38]} Kf2 {[%clk 00:29:00]}
{[%emt 00:01:09]} 74. Nh2 {[%clk 00:38:16]} {[%emt 00:00:03]} Kg3 {[%clk
00:22:08]} {[%emt 00:07:21]} 75. Nf1 {[%clk 00:37:42]} {[%emt 00:01:06]} Kf4
{[%clk 00:21:42]} {[%emt 00:00:53]} 76. Ke2 {[%clk 00:36:52]} {[%emt 00:01:23]}
Kg5 {[%clk 00:21:30]} {[%emt 00:00:42]} 77. Kf3 {[%clk 00:36:55]} {[%emt
00:00:26]} Kh4 {[%clk 00:20:26]} {[%emt 00:01:34]} 78. Kf4 {[%clk 00:36:59]}
{[%emt 00:00:27]} Ng7 {[%clk 00:20:29]} {[%emt 00:00:25]} 79. Nh2 {[%clk
00:36:57]} {[%emt 00:00:33]} Nh5+ {[%clk 00:19:53]} {[%emt 00:01:06]} 80. Kf3
{[%clk 00:37:21]} {[%emt 00:00:05]} Ng7 {[%clk 00:18:55]} {[%emt 00:01:29]} 81.
Kf4 {[%clk 00:37:46]} {[%emt 00:00:05]} Nh5+ {[%clk 00:16:52]} {[%emt
00:02:33]} 82. Kf3 {[%clk 00:38:08]} {[%emt 00:00:09]} Kg5 {[%clk 00:15:01]}
{[%emt 00:02:20]} 83. g7 {[%clk 00:38:30]} {[%emt 00:00:09]} Nxg7 {[%clk
00:15:26]} {[%emt 00:00:04]} 84. Kg3 {[%clk 00:38:56]} {[%emt 00:00:04]} Nf5+
{[%clk 00:15:47]} {[%emt 00:00:09]} 85. Kxh3 {[%clk 00:39:21]} {[%emt
00:00:05]} 1/2-1/2

[Event "Amateur Tournament (ATO)"]
[Site "Biel, Switzerland"]
[Date "2026.07.15"]
[Round "2.2"]
[White "Novalic, Miralem"]
[Black "Sushrutha, Reddy"]
[Result "0-1"]
[TimeControl "90+30+30sec/move"]
[WhiteTitle "-"]
[BlackTitle "-"]
[WhiteFideId "1317539"]
[BlackFideId "5039100"]
[WhiteElo "1966"]
[BlackElo "1799"]

1. d4 {[%clk 01:30:45]} {[%emt 00:00:14]} Nf6 {[%clk 01:18:27]} {[%emt
00:12:33]} 2. Nf3 {[%clk 01:30:30]} {[%emt 00:00:45]} g6 {[%clk 01:18:43]}
{[%emt 00:00:15]} 3. c4 {[%clk 01:29:46]} {[%emt 00:01:13]} Bg7 {[%clk
01:19:09]} {[%emt 00:00:03]} 4. Nc3 {[%clk 01:30:02]} {[%emt 00:00:15]} O-O
{[%clk 01:19:30]} {[%emt 00:00:10]} 5. e4 {[%clk 01:30:06]} {[%emt 00:00:26]}
d6 {[%clk 01:19:57]} {[%emt 00:00:03]} 6. h3 {[%clk 01:30:00]} {[%emt
00:00:35]} e5 {[%clk 01:19:50]} {[%emt 00:00:37]} 7. dxe5 {[%clk 01:22:37]}
{[%emt 00:07:54]} dxe5 {[%clk 01:20:16]} {[%emt 00:00:03]} 8. Bg5 {[%clk
01:22:32]} {[%emt 00:00:35]} Nbd7 {[%clk 01:15:47]} {[%emt 00:04:59]} 9. Qd2
{[%clk 01:22:17]} {[%emt 00:00:45]} c6 {[%clk 01:14:41]} {[%emt 00:01:34]} 10.
Rd1 {[%clk 01:17:01]} {[%emt 00:05:48]} Qc7 {[%clk 01:14:36]} {[%emt 00:00:36]}
11. Be2 {[%clk 01:16:52]} {[%emt 00:00:38]} Nc5 {[%clk 01:14:17]} {[%emt
00:00:48]} 12. Qe3 {[%clk 01:14:32]} {[%emt 00:02:51]} Ne6 {[%clk 01:08:19]}
{[%emt 00:06:28]} 13. O-O {[%clk 01:12:41]} {[%emt 00:02:22]} Nxg5 {[%clk
01:08:08]} {[%emt 00:00:41]} 14. Qxg5 {[%clk 01:12:52]} {[%emt 00:00:18]} Be6
{[%clk 01:06:40]} {[%emt 00:01:57]} 15. Rd2 {[%clk 01:10:26]} {[%emt 00:02:56]}
Nh5 {[%clk 01:03:07]} {[%emt 00:04:04]} 16. Rfd1 {[%clk 01:04:37]} {[%emt
00:06:19]} Nf4 {[%clk 00:59:38]} {[%emt 00:03:59]} 17. Bf1 {[%clk 01:04:03]}
{[%emt 00:01:05]} f6 {[%clk 00:51:08]} {[%emt 00:08:59]} 18. Qg3 {[%clk
01:04:13]} {[%emt 00:00:18]} Qf7 {[%clk 00:50:24]} {[%emt 00:01:16]} 19. b3
{[%clk 01:03:48]} {[%emt 00:00:55]} Bh6 {[%clk 00:50:07]} {[%emt 00:00:47]} 20.
Qh2 {[%clk 01:00:52]} {[%emt 00:03:26]} Rfe8 {[%clk 00:49:36]} {[%emt
00:01:00]} 21. g3 {[%clk 00:57:43]} {[%emt 00:03:40]} Nh5 {[%clk 00:48:51]}
{[%emt 00:01:14]} 22. Rd6 {[%clk 00:56:08]} {[%emt 00:02:06]} Bf8 {[%clk
00:49:02]} {[%emt 00:00:18]} 23. R6d3 {[%clk 00:56:05]} {[%emt 00:00:35]} Qc7
{[%clk 00:44:38]} {[%emt 00:04:51]} 24. Be2 {[%clk 00:55:27]} {[%emt 00:01:09]}
Bf7 {[%clk 00:40:55]} {[%emt 00:04:13]} 25. Ne1 {[%clk 00:54:53]} {[%emt
00:01:05]} Ng7 {[%clk 00:41:17]} {[%emt 00:00:08]} 26. Nc2 {[%clk 00:53:58]}
{[%emt 00:01:25]} Ne6 {[%clk 00:41:13]} {[%emt 00:00:34]} 27. Na4 {[%clk
00:47:51]} {[%emt 00:06:38]} Rad8 {[%clk 00:39:41]} {[%emt 00:02:01]} 28. Qg2
{[%clk 00:47:59]} {[%emt 00:00:23]} b5 {[%clk 00:39:10]} {[%emt 00:01:01]} 29.
Nb2 {[%clk 00:47:08]} {[%emt 00:01:20]} Qa5 {[%clk 00:37:52]} {[%emt 00:01:48]}
30. a4 {[%clk 00:44:12]} {[%emt 00:03:27]} b4 {[%clk 00:36:03]} {[%emt
00:02:17]} 31. Qf3 {[%clk 00:43:38]} {[%emt 00:01:04]} Kg7 {[%clk 00:35:32]}
{[%emt 00:01:02]} 32. Rxd8 {[%clk 00:38:59]} {[%emt 00:05:10]} Rxd8 {[%clk
00:35:55]} {[%emt 00:00:06]} 33. Rxd8 {[%clk 00:37:48]} {[%emt 00:01:41]} Qxd8
{[%clk 00:36:23]} {[%emt 00:00:02]} 34. Qd3 {[%clk 00:37:35]} {[%emt 00:00:44]}
Qb6 {[%clk 00:32:41]} {[%emt 00:04:09]} 35. Nd1 {[%clk 00:28:50]} {[%emt
00:09:17]} Bc5 {[%clk 00:31:08]} {[%emt 00:02:02]} 36. Bg4 {[%clk 00:28:27]}
{[%emt 00:00:54]} Nf8 {[%clk 00:28:51]} {[%emt 00:02:47]} 37. h4 {[%clk
00:26:56]} {[%emt 00:02:01]} h5 {[%clk 00:28:52]} {[%emt 00:00:28]} 38. Bh3
{[%clk 00:27:10]} {[%emt 00:00:17]} Qc7 {[%clk 00:27:09]} {[%emt 00:02:10]} 39.
Kg2 {[%clk 00:25:54]} {[%emt 00:01:49]} a5 {[%clk 00:27:20]} {[%emt 00:00:19]}
40. Nde3 {[%clk 00:25:45]} {[%emt 00:00:39]} Qe7 {[%clk 00:26:22]} {[%emt
00:01:22]} 41. Kf1 {[%clk 00:21:01]} {[%emt 00:05:20]} Qd6 {[%clk 00:23:46]}
{[%emt 00:03:02]} 42. Ke2 {[%clk 00:19:43]} {[%emt 00:01:52]} Be6 {[%clk
00:21:56]} {[%emt 00:02:19]} 43. Bg2 {[%clk 00:17:09]} {[%emt 00:03:05]} Nd7
{[%clk 00:22:10]} {[%emt 00:00:16]} 44. Ne1 {[%clk 00:17:05]} {[%emt 00:00:34]}
Bd4 {[%clk 00:22:00]} {[%emt 00:00:40]} 45. Qc2 {[%clk 00:17:30]} {[%emt
00:00:06]} Bxe3 {[%clk 00:13:12]} {[%emt 00:09:18]} 46. fxe3 {[%clk 00:17:32]}
{[%emt 00:00:27]} Nc5 {[%clk 00:13:25]} {[%emt 00:00:17]} 47. Nd3 {[%clk
00:17:41]} {[%emt 00:00:22]} Bg4+ {[%clk 00:13:01]} {[%emt 00:00:54]} 48. Kd2
{[%clk 00:17:52]} {[%emt 00:00:18]} f5 {[%clk 00:12:27]} {[%emt 00:01:04]} 49.
exf5 {[%clk 00:16:31]} {[%emt 00:01:52]} gxf5 {[%clk 00:12:03]} {[%emt
00:00:53]} 50. Bxc6 {[%clk 00:15:57]} {[%emt 00:01:05]} Qxc6 {[%clk 00:10:32]}
{[%emt 00:02:01]} 51. Nxc5 {[%clk 00:15:39]} {[%emt 00:00:48]} Qxc5 {[%clk
00:10:57]} {[%emt 00:00:05]} 52. Qd3 {[%clk 00:15:57]} {[%emt 00:00:11]} Qc6
{[%clk 00:09:39]} {[%emt 00:01:46]} 53. Qd8 {[%clk 00:15:59]} {[%emt 00:00:29]}
Qg2+ {[%clk 00:08:07]} {[%emt 00:02:03]} 54. Kc1 {[%clk 00:16:19]} {[%emt
00:00:11]} Qf1+ {[%clk 00:07:39]} {[%emt 00:00:57]} 55. Kc2 {[%clk 00:16:30]}
{[%emt 00:00:20]} Qe2+ {[%clk 00:07:31]} {[%emt 00:00:36]} 56. Kb1 {[%clk
00:16:56]} {[%emt 00:00:06]} Qd1+ {[%clk 00:06:49]} {[%emt 00:01:12]} 57. Qxd1
{[%clk 00:17:17]} {[%emt 00:00:09]} Bxd1 {[%clk 00:07:03]} {[%emt 00:00:15]} 58.
Kb2 {[%clk 00:17:29]} {[%emt 00:00:18]} Kf6 {[%clk 00:07:11]} {[%emt 00:00:21]}
59. Ka2 {[%clk 00:17:56]} {[%emt 00:00:05]} f4 {[%clk 00:06:59]} {[%emt
00:00:42]} 60. gxf4 {[%clk 00:18:16]} {[%emt 00:00:09]} exf4 {[%clk 00:07:25]}
{[%emt 00:00:05]} 61. exf4 {[%clk 00:18:27]} {[%emt 00:00:19]} Kf5 {[%clk
00:07:52]} {[%emt 00:00:02]} 62. c5 {[%clk 00:18:46]} {[%emt 00:00:12]} Bf3
{[%clk 00:08:13]} {[%emt 00:00:08]} 63. Kb2 {[%clk 00:19:08]} {[%emt 00:00:09]}
Kxf4 {[%clk 00:08:15]} {[%emt 00:00:28]} 64. Kc2 {[%clk 00:19:33]} {[%emt
00:00:04]} Kg4 {[%clk 00:08:06]} {[%emt 00:00:39]} 65. Kd3 {[%clk 00:19:57]}
{[%emt 00:00:07]} Kxh4 {[%clk 00:08:09]} {[%emt 00:00:27]} 66. Kc4 {[%clk
00:20:22]} {[%emt 00:00:06]} Bc6 {[%clk 00:08:14]} {[%emt 00:00:24]} 0-1

[Event "Amateur Tournament (ATO)"]
[Site "Biel, Switzerland"]
[Date "2026.07.15"]
[Round "2.3"]
[White "Buntschu, Kurt"]
[Black "Alexakis, Dimitrios"]
[Result "0-1"]
[TimeControl "90+30+30sec/move"]
[WhiteTitle "-"]
[BlackTitle "-"]
[WhiteFideId "1325884"]
[BlackFideId "4200527"]
[WhiteElo "1795"]
[BlackElo "1959"]

1. e4 {[%clk 01:30:52]} {[%emt 00:00:07]} c5 {[%clk 01:30:44]} {[%emt
00:00:16]} 2. c3 {[%clk 01:31:09]} {[%emt 00:00:14]} Nf6 {[%clk 01:30:58]}
{[%emt 00:00:15]} 3. e5 {[%clk 01:31:28]} {[%emt 00:00:12]} Nd5 {[%clk
01:31:20]} {[%emt 00:00:07]} 4. d4 {[%clk 01:31:12]} {[%emt 00:00:46]} cxd4
{[%clk 01:31:37]} {[%emt 00:00:13]} 5. Nf3 {[%clk 01:31:26]} {[%emt 00:00:16]}
Nc6 {[%clk 01:30:39]} {[%emt 00:01:29]} 6. cxd4 {[%clk 01:31:49]} {[%emt
00:00:07]} e6 {[%clk 01:30:29]} {[%emt 00:00:39]} 7. Nc3 {[%clk 01:31:24]}
{[%emt 00:00:55]} Nxc3 {[%clk 01:28:28]} {[%emt 00:02:31]} 8. bxc3 {[%clk
01:31:45]} {[%emt 00:00:09]} d6 {[%clk 01:28:34]} {[%emt 00:00:24]} 9. Bd3
{[%clk 01:20:42]} {[%emt 00:11:34]} dxe5 {[%clk 01:25:35]} {[%emt 00:03:28]} 10.
dxe5 {[%clk 01:21:06]} {[%emt 00:00:07]} Qa5 {[%clk 01:25:26]} {[%emt
00:00:38]} 11. O-O {[%clk 01:19:55]} {[%emt 00:01:42]} Nxe5 {[%clk 01:20:23]}
{[%emt 00:05:33]} 12. Nxe5 {[%clk 01:12:05]} {[%emt 00:08:20]} Qxe5 {[%clk
01:20:49]} {[%emt 00:00:03]} 13. Re1 {[%clk 01:05:55]} {[%emt 00:06:41]} Qa5
{[%clk 01:16:32]} {[%emt 00:04:45]} 14. Qb3 {[%clk 01:01:52]} {[%emt 00:04:34]}
Be7 {[%clk 01:11:55]} {[%emt 00:05:06]} 15. Bb5+ {[%clk 01:01:13]} {[%emt
00:01:10]} Kf8 {[%clk 01:11:54]} {[%emt 00:00:31]} 16. Be3 {[%clk 00:58:48]}
{[%emt 00:02:56]} Qa3 {[%clk 01:04:57]} {[%emt 00:07:26]} 17. Qc2 {[%clk
00:54:53]} {[%emt 00:04:26]} a6 {[%clk 01:03:42]} {[%emt 00:01:44]} 18. Ba4
{[%clk 00:50:15]} {[%emt 00:05:08]} b5 {[%clk 00:59:10]} {[%emt 00:05:01]} 19.
Qe4 {[%clk 00:48:38]} {[%emt 00:02:08]} Rb8 {[%clk 00:58:45]} {[%emt 00:00:55]}
20. Bb3 {[%clk 00:42:14]} {[%emt 00:06:55]} Bb7 {[%clk 00:58:36]} {[%emt
00:00:38]} 21. Qd4 {[%clk 00:33:56]} {[%emt 00:08:48]} Qd6 {[%clk 00:51:06]}
{[%emt 00:08:00]} 22. Qg4 {[%clk 00:33:51]} {[%emt 00:00:36]} h5 {[%clk
00:48:31]} {[%emt 00:03:04]} 23. Qd4 {[%clk 00:22:37]} {[%emt 00:11:45]} Qxd4
{[%clk 00:42:50]} {[%emt 00:06:10]} 24. Bxd4 {[%clk 00:22:57]} {[%emt
00:00:10]} Bf6 {[%clk 00:39:40]} {[%emt 00:03:40]} 25. Bc5+ {[%clk 00:18:03]}
{[%emt 00:05:25]} Kg8 {[%clk 00:39:30]} {[%emt 00:00:40]} 26. Bb4 {[%clk
00:18:00]} {[%emt 00:00:32]} Kh7 {[%clk 00:39:30]} {[%emt 00:00:29]} 27. Rad1
{[%clk 00:17:38]} {[%emt 00:00:53]} Rhd8 {[%clk 00:39:02]} {[%emt 00:00:58]} 28.
Ba5 {[%clk 00:13:16]} {[%emt 00:04:53]} Rxd1 {[%clk 00:38:16]} {[%emt
00:01:15]} 29. Rxd1 {[%clk 00:13:35]} {[%emt 00:00:11]} Bc6 {[%clk 00:37:49]}
{[%emt 00:00:57]} 30. Rd6 {[%clk 00:11:23]} {[%emt 00:02:42]} Rc8 {[%clk
00:37:49]} {[%emt 00:00:30]} 31. f3 {[%clk 00:05:38]} {[%emt 00:06:16]} Be7
{[%clk 00:35:46]} {[%emt 00:02:32]} 32. Rd3 {[%clk 00:05:47]} {[%emt 00:00:21]}
Bc5+ {[%clk 00:35:06]} {[%emt 00:01:09]} 33. Kf1 {[%clk 00:04:40]} {[%emt
00:01:38]} g6 {[%clk 00:34:55]} {[%emt 00:00:40]} 34. Bb4 {[%clk 00:03:53]}
{[%emt 00:01:18]} Bb6 {[%clk 00:31:51]} {[%emt 00:03:33]} 35. Ke1 {[%clk
00:02:22]} {[%emt 00:02:02]} a5 {[%clk 00:31:35]} {[%emt 00:00:46]} 36. Be7
{[%clk 00:02:01]} {[%emt 00:00:52]} Kg7 {[%clk 00:29:07]} {[%emt 00:02:57]} 37.
g3 {[%clk 00:01:20]} a4 {[%clk 00:28:21]} {[%emt 00:02:27]} 38. Bc2 {[%clk
00:01:29]} Bd5 {[%clk 00:28:22]} {[%emt 00:00:49]} 39. a3 {[%clk 00:01:32]} Bc5
{[%clk 00:26:16]} {[%emt 00:03:03]} 40. Bxc5 {[%clk 00:01:17]} Rxc5 {[%clk
00:26:44]} {[%emt 00:00:48]} 41. Kd2 {[%clk 00:30:56]} e5 {[%clk 00:51:18]}
{[%emt 00:07:46]} 42. Re3 {[%clk 00:28:54]} f6 {[%clk 00:47:56]} {[%emt
00:06:26]} 43. Be4 {[%clk 00:20:22]} f5 {[%clk 00:46:47]} {[%emt 00:10:40]} 44.
Bd3 {[%clk 00:15:59]} Kf6 {[%clk 00:45:08]} {[%emt 00:07:02]} 45. h4 {[%clk
00:15:48]} Bc4 {[%clk 00:40:28]} {[%emt 00:05:52]} 46. Bc2 {[%clk 00:08:54]}
Rd5+ {[%clk 00:37:48]} {[%emt 00:10:34]} 47. Kc1 {[%clk 00:07:09]} Rd6 {[%clk
00:36:19]} {[%emt 00:04:14]} 48. Re1 {[%clk 00:06:56]} Ke6 {[%clk 00:29:21]}
{[%emt 00:08:11]} 49. Re3 {[%clk 00:06:16]} Rd7 {[%clk 00:23:49]} {[%emt
00:07:12]} 50. Re1 {[%clk 00:06:11]} Bd3 {[%clk 00:20:10]} {[%emt 00:04:43]} 51.
Re3 {[%clk 00:04:49]} Bxc2 {[%clk 00:19:32]} {[%emt 00:03:01]} 52. Kxc2 {[%clk
00:05:13]} Rd5 {[%clk 00:19:40]} {[%emt 00:00:28]} 53. Re1 {[%clk 00:05:03]}
Kd6 {[%clk 00:18:33]} {[%emt 00:02:17]} 54. Rb1 {[%clk 00:05:03]} e4 {[%clk
00:18:02]} {[%emt 00:01:30]} 55. fxe4 {[%clk 00:03:38]} fxe4 {[%clk 00:18:30]}
{[%emt 00:01:58]} 56. Rf1 {[%clk 00:03:21]} Rf5 {[%clk 00:17:40]} {[%emt
00:02:07]} 57. Re1 {[%clk 00:03:17]} Rf2+ {[%clk 00:17:41]} {[%emt 00:01:02]}
58. Kd1 {[%clk 00:03:00]} Kd5 {[%clk 00:17:38]} {[%emt 00:01:21]} 59. Re3
{[%clk 00:02:27]} Rg2 {[%clk 00:16:09]} {[%emt 00:03:01]} 60. Ke1 {[%clk
00:02:36]} Ke5 {[%clk 00:16:20]} {[%emt 00:00:41]} 61. Kd1 {[%clk 00:02:12]}
Ra2 {[%clk 00:15:52]} {[%emt 00:01:51]} 62. Kc1 {[%clk 00:01:38]} Rxa3 {[%clk
00:15:50]} {[%emt 00:01:37]} 63. Kb2 {[%clk 00:02:03]} Rb3+ {[%clk 00:16:10]}
{[%emt 00:00:15]} 0-1